fUSD/lending_fUSD_20260128
["ID","MTS","AMOUNT","RATE_DAILY","PERIOD"]
[403847200,1769593845823,-150.0,0.00020045,2]
[403847202,1769593845833,-300.0,0.00020055,2]
[403847204,1769593845842,-1413.751,0.00020056,2]
[403847206,1769593845851,-1338.52,0.00020056,2]
[403847208,1769593845861,-3487.934,0.00020056,2]
[403847210,1769593845870,-617.145,0.00020056,2]
[403847212,1769593845879,-184.736,0.00020056,2]
[403847214,1769593845888,-1273.033,0.00020056,2]
[403847216,1769593845896,-6572.0,0.00020056,2]
[403847218,1769593845906,-567.0,0.00020056,2]
[403847220,1769593845915,-2443.0,0.00020056,2]
[403847222,1769593845925,-1000.0,0.00020059,2]
[403847224,1769593845934,-150.0,0.00020083,2]
[403847226,1769593845943,-1000.0,0.00020155,2]
[403847228,1769593845952,-1000.0,0.0002018,2]
[403847230,1769593845962,-150.0,0.00020182,2]
[403847232,1769593845972,-1000.0,0.00020213,2]
[403847234,1769593845980,-1000.0,0.00020251,2]
[403847236,1769593845990,-166.11,0.0002027,2]
[403847238,1769593845999,-150.0,0.00020275,2]
[403847240,1769593846008,-2987.85380605,0.00020284,2]
[403847242,1769593846017,-3998.0,0.00020286,2]
[403847244,1769593846026,-281.98695942,0.00020357,2]
[403847246,1769593846036,-1000.0,0.00020366,2]
[403847248,1769593846045,-1000.0,0.00020374,2]
[403847250,1769593846055,-1000.0,0.000204,2]
[403847252,1769593846064,-1000.0,0.00020418,2]
[403847254,1769593846073,-1000.0,0.00020446,2]
[403847256,1769593846084,-1000.0,0.00020447,2]
[403847258,1769593846092,-400.0,0.00020451,2]
[403847260,1769593846101,-150.0,0.00020458,2]
[403847262,1769593846111,-150.0,0.00020468,2]
[403847264,1769593846120,-1000.0,0.00020477,2]
[403847266,1769593846129,-873.26,0.0002048,2]
[403847268,1769593846140,-1000.0,0.00020481,2]
[403847270,1769593846152,-1000.0,0.00020484,2]
[403847272,1769593846162,-1000.0,0.00020519,2]
[403847274,1769593846171,-1000.0,0.00020522,2]
[403847275,1769593846181,-198.25,0.00020525,2]
[403847277,1769593846190,-1000.0,0.00020527,2]
[403847279,1769593846200,-1000.0,0.00020535,2]
[403847282,1769593846209,-541.777439,0.00020535,2]
[403847284,1769593846220,-541.777439,0.00020535,2]
[403847286,1769593846230,-541.777439,0.00020535,2]
[403847287,1769593846241,-541.777439,0.00020535,2]
[403847290,1769593846251,-249.584912,0.00020535,2]
[403847291,1769593846260,-249.584912,0.00020535,2]
[403847293,1769593846269,-249.584912,0.00020535,2]
[403847295,1769593846278,-249.5849156,0.00020535,2]
[403847297,1769593846287,-1000.0,0.00020555,2]
[403847299,1769593846296,-200.17585614,0.00020565,2]
[403847302,1769593846305,-1000.0,0.0002057,2]
[403847303,1769593846314,-1000.0,0.00020571,2]
[403847306,1769593846323,-1000.0,0.00020577,2]
[403847308,1769593846332,-387.0,0.00020587,2]
[403847310,1769593846342,-151.0,0.00020587,2]
[403847312,1769593846351,-151.0,0.00020587,2]
[403847314,1769593846360,-151.0,0.00020587,2]
[403847316,1769593846371,-198.24145353,0.00020591,2]
[403847317,1769593846380,-1000.0,0.000206,2]
[403847320,1769593846390,-150.0,0.00020618,2]
[403847321,1769593846399,-1000.0,0.00020624,2]
[403847324,1769593846408,-609.283592,0.00020624,2]
[403847326,1769593846418,-609.283592,0.00020624,2]
[403847328,1769593846427,-609.283592,0.00020624,2]
[403847330,1769593846436,-609.283584,0.00020624,2]
[403847332,1769593846445,-151.0,0.00020624,2]
[403847334,1769593846454,-1000.0,0.00020636,2]
[403847336,1769593846463,-151.0,0.00020636,2]
[403847338,1769593846472,-151.0,0.00020636,2]
[403847340,1769593846481,-200.301807,0.00020636,2]
[403847341,1769593846491,-200.301807,0.00020636,2]
[403847344,1769593846500,-200.301807,0.00020636,2]
[403847346,1769593846510,-200.301816,0.00020636,2]
[403847348,1769593846519,-1000.0,0.00020648,2]
[403847350,1769593846527,-1000.0,0.00020653,2]
[403847352,1769593846537,-1000.0,0.00020654,2]
[403847354,1769593846546,-1000.0,0.00020658,2]
[403847356,1769593846555,-1000.0,0.00020658,2]
[403847358,1769593846564,-1000.0,0.00020659,2]
[403847360,1769593846573,-150.0,0.00020667,2]
[403847362,1769593846582,-386.87667747,0.00020693,2]
[403847364,1769593846591,-1000.0,0.00020695,2]
[403847366,1769593846600,-1000.0,0.00020699,2]
[403847368,1769593846609,-1000.0,0.0002071,2]
[403847370,1769593846618,-1000.0,0.00020711,2]
[403847372,1769593846627,-1018.0,0.00020726,7]
[403847374,1769593846636,-500.0,0.00020726,2]
[403847375,1769593846645,-150.0,0.00020727,2]
[403847378,1769593846655,-1000.0,0.00020727,2]
[403847380,1769593846664,-150.173,0.00020731,2]
[403847381,1769593846673,-150.149,0.00020731,2]
[403847383,1769593846682,-387.0,0.00020731,2]
[403847385,1769593846691,-387.0,0.00020748,2]
[403847387,1769593846699,-387.0,0.00020754,2]
[403847389,1769593846709,-1000.0,0.00020768,2]
[403847391,1769593846719,-690.42866624,0.00020769,2]
[403847393,1769593846728,-150.0,0.00020775,2]
[403847395,1769593846738,-1018.0,0.00020781,7]
[403847397,1769593846747,-500.0,0.00020781,2]
[403847399,1769593846756,-3077.211,0.00020781,2]
[403847401,1769593846765,-247.755,0.00020781,2]
[403847403,1769593846774,-1000.0,0.00020786,2]
[403847405,1769593846783,-1056.13461202,0.0002079,2]
[403847407,1769593846792,-1000.0,0.00020798,2]
[403847409,1769593846802,-1000.0,0.0002081,2]
[403847412,1769593846811,-387.0,0.00020814,2]
[403847414,1769593846821,-1018.0,0.00020836,7]
[403847416,1769593846830,-500.0,0.00020836,2]
[403847418,1769593846839,-200.0,0.00020836,2]
[403847419,1769593846849,-1000.0,0.00020842,2]
[403847421,1769593846859,-1000.0,0.00020844,2]
[403847423,1769593846868,-387.0,0.00020853,2]
[403847425,1769593846877,-1000.0,0.00020854,2]
[403847428,1769593846887,-1000.0,0.00020855,2]
[403847430,1769593846896,-150.0,0.00020858,2]
[403847432,1769593846905,-1000.0,0.00020868,2]
[403847434,1769593846914,-1000.0,0.0002088,2]
[403847436,1769593846923,-1000.0,0.00020881,2]
[403847437,1769593846932,-1018.0,0.0002089,7]
[403847440,1769593846942,-1000.0,0.00020905,2]
[403847441,1769593846951,-387.0,0.00020926,2]
[403847443,1769593846960,-1000.0,0.00020934,2]
[403847446,1769593846970,-1018.0,0.00020945,7]
[403847448,1769593846979,-1000.0,0.00020946,2]
[403847450,1769593846989,-1000.0,0.0002095,2]
[403847452,1769593846999,-150.0,0.00020962,2]
[403847454,1769593847009,-1000.0,0.00020974,2]
[403847456,1769593847019,-1000.0,0.00020976,2]
[403847458,1769593847029,-1000.0,0.00020987,2]
[403847460,1769593847038,-187.04623115,0.00020999,2]
[403847462,1769593847047,-1018.0,0.00021,7]
[403847464,1769593847056,-500.0,0.00021,2]
[403847466,1769593847065,-500.0,0.00021,2]
[403847468,1769593847074,-20000.0,0.00021,2]
[403847470,1769593847083,-806.93450251,0.00021,2]
[403847472,1769593847093,-1193.76869682,0.00021,2]
[403847474,1769593847102,-197.04144914,0.00021,2]
[403847476,1769593847111,-799.24,0.00021,7]
[403847478,1769593847120,-1267.0,0.00021,2]
[403847480,1769593847129,-152.0,0.00021,2]
[403847482,1769593847139,-1267.0,0.00021,2]
[403847484,1769593847150,-152.0,0.00021,2]
[403847486,1769593847159,-151.0,0.00021,2]
[403847488,1769593847168,-1267.0,0.00021,2]
[403847490,1769593847177,-152.0,0.00021,2]
[403847492,1769593847186,-151.0,0.00021,2]
[403847494,1769593847197,-1267.0,0.00021,2]
[403847496,1769593847206,-152.0,0.00021,2]
[403847498,1769593847215,-151.0,0.00021,2]
[403847500,1769593847229,-1267.0,0.00021,2]
[403847502,1769593847239,-152.0,0.00021,2]
[403847504,1769593847249,-151.0,0.00021,2]
[403847506,1769593847259,-1267.0,0.00021,2]
[403847508,1769593847268,-152.0,0.00021,2]
[403847510,1769593847277,-151.0,0.00021,2]
[403847536,1769593847552,-1267.0,0.00021,2]
[403847537,1769593847563,-152.0,0.00021,2]
[403847538,1769593847573,-151.0,0.00021,2]
[403847539,1769593847583,-1267.0,0.00021,2]
[403847540,1769593847592,-152.0,0.00021,2]
[403847541,1769593847602,-151.0,0.00021,2]
[403847542,1769593847611,-151.0,0.00021,2]
[403847543,1769593847621,-152.0,0.00021,2]
[403847544,1769593847631,-1267.0,0.00021,2]
[403847546,1769593847641,-151.0,0.00021,2]
[403847548,1769593847651,-151.0,0.00021,2]
[403847550,1769593847662,-152.0,0.00021,2]
[403847552,1769593847672,-151.0,0.00021,2]
[403847554,1769593847682,-1267.0,0.00021,2]
[403847556,1769593847692,-151.0,0.00021,2]
[403847558,1769593847701,-151.0,0.00021,2]
[403847560,1769593847710,-152.0,0.00021,2]
[403847562,1769593847721,-1267.0,0.00021,2]
[403847564,1769593847730,-151.0,0.00021,2]
[403847566,1769593847740,-151.0,0.00021,2]
[403847568,1769593847750,-1267.0,0.00021,2]
[403847570,1769593847760,-152.0,0.00021,2]
[403847572,1769593847770,-151.0,0.00021,2]
[403847574,1769593847779,-151.0,0.00021,2]
[403847576,1769593847789,-152.0,0.00021,2]
[403847578,1769593847798,-1267.0,0.00021,2]
[403847580,1769593847807,-151.0,0.00021,2]
[403847582,1769593847817,-151.0,0.00021,2]
[403847584,1769593847826,-1267.0,0.00021,2]
[403847586,1769593847836,-152.0,0.00021,2]
[403847588,1769593847846,-151.0,0.00021,2]
[403847590,1769593847855,-152.0,0.00021,2]
[403847592,1769593847865,-1267.0,0.00021,2]
[403847594,1769593847874,-151.0,0.00021,2]
[403847596,1769593847883,-152.0,0.00021,2]
[403847598,1769593847893,-1267.0,0.00021,2]
[403847600,1769593847903,-151.0,0.00021,2]
[403847602,1769593847913,-1267.0,0.00021,2]
[403847605,1769593847923,-1267.0,0.00021,2]
[403847607,1769593847934,-152.50126102,0.00021,2]
[403847609,1769593847946,-1267.0,0.00021,2]
[403847611,1769593847961,-1267.0,0.00021,2]
[403847612,1769593847971,-1267.0,0.00021,2]
[403847615,1769593847981,-1267.0,0.00021,2]
[403847617,1769593847993,-1267.0,0.00021,2]
[403847619,1769593848002,-1267.0,0.00021,2]
[403847621,1769593848011,-1267.0,0.00021,2]
[403847623,1769593848020,-1267.0,0.00021,2]
[403847625,1769593848029,-1267.0,0.00021,2]
[403847627,1769593848039,-166.0,0.00021,2]
[403847629,1769593848049,-1267.0,0.00021,2]
[403847631,1769593848058,-170.47665606,0.00021,2]
[403847633,1769593848069,-158.0,0.00021,2]
[403847635,1769593848079,-151.0,0.00021,2]
[403847637,1769593848088,-151.0,0.00021,2]
[403847639,1769593848098,-151.0,0.00021,2]
[403847641,1769593848107,-151.0,0.00021,2]
[403847643,1769593848117,-514.891868,0.00021,2]
[403847645,1769593848126,-514.891868,0.00021,2]
[403847647,1769593848136,-514.891868,0.00021,2]
[403847649,1769593848148,-514.891873,0.00021,2]
[403847651,1769593848159,-1267.0,0.00021,2]
[403847653,1769593848168,-151.0,0.00021,2]
[403847655,1769593848178,-151.0,0.00021,2]
[403847657,1769593848189,-151.0,0.00021,2]
[403847659,1769593848199,-151.0,0.00021,2]
[403847661,1769593848209,-151.0,0.00021,2]
[403847663,1769593848219,-151.0,0.00021,2]
[403847665,1769593848230,-500.0,0.00021014,2]
[403847667,1769593848239,-1018.0,0.00021055,7]
[403847669,1769593848249,-12520.94,0.00021068,2]
[403847671,1769593848259,-2987.85380605,0.00021078,2]
[403847673,1769593848269,-1018.0,0.0002111,7]
[403847675,1769593848279,-1018.0,0.00021164,7]
[403847677,1769593848288,-634.8,0.00021206,2]
[403847679,1769593848298,-1018.0,0.00021219,7]
[403847681,1769593848307,-1018.0,0.00021274,7]
[403847683,1769593848318,-1018.0,0.00021329,7]
[403847685,1769593848328,-1018.0,0.00021384,7]
[403847687,1769593848338,-1018.0,0.00021438,7]
[403847689,1769593848348,-501.0,0.00021444,5]
[403847692,1769593848357,-1018.0,0.00021493,7]
[403847694,1769593848367,-57567.23947044,0.000215,2]
[403847696,1769593848377,-222.2638941,0.000215,2]
[403847698,1769593848387,-1018.0,0.00021548,7]
[403847700,1769593848396,-1018.0,0.00021603,7]
[403847702,1769593848405,-1018.0,0.00021658,7]
[403847704,1769593848414,-1018.0,0.00021712,7]
[403847706,1769593848424,-1018.0,0.00021767,7]
[403847708,1769593848433,-1018.0,0.00021822,7]
[403847710,1769593848443,-2987.85380605,0.00021873,2]
[403847712,1769593848453,-1018.0,0.00021877,7]
[403847714,1769593848462,-500.0,0.00021917,2]
[403847716,1769593848471,-500.0,0.00021917,2]
[403847718,1769593848481,-500.0,0.00021917,2]
[403847720,1769593848491,-500.0,0.00021917,2]
[403847722,1769593848500,-500.0,0.00021917,2]
[403847724,1769593848509,-500.0,0.00021917,2]
[403847726,1769593848519,-500.0,0.00021917,2]
[403847728,1769593848528,-500.0,0.00021917,2]
[403847730,1769593848538,-500.0,0.00021917,2]
[403847732,1769593848547,-500.0,0.00021917,2]
[403847734,1769593848556,-500.0,0.00021917,2]
[403847736,1769593848566,-500.0,0.00021917,2]
[403847738,1769593848576,-380.64938174,0.00021917,2]
[403847740,1769593848585,-5000.0,0.00021918,2]
[403847742,1769593848596,-151.0,0.00021918,2]
[403847744,1769593848605,-151.712915,0.00021918,2]
[403847746,1769593848614,-151.0,0.00021918,2]
[403847748,1769593848623,-151.198748,0.00021918,2]
[403847750,1769593848633,-155.0,0.00021918,2]
[403847752,1769593848642,-165.0,0.00021918,2]
[403847754,1769593848652,-155.0,0.00021918,2]
[403847756,1769593848661,-165.0,0.00021918,2]
[403847758,1769593848670,-155.0,0.00021918,2]
[403847760,1769593848679,-165.0,0.00021918,2]
[403847762,1769593848689,-155.0,0.00021918,2]
[403847764,1769593848698,-165.0,0.00021918,2]
[403847766,1769593848707,-165.0,0.00021918,2]
[403847768,1769593848716,-155.0,0.00021918,2]
[403847770,1769593848726,-165.0,0.00021918,2]
[403847772,1769593848735,-155.0,0.00021918,2]
[403847775,1769593848744,-165.0,0.00021918,2]
[403847777,1769593848753,-155.0,0.00021918,2]
[403847779,1769593848763,-165.0,0.00021918,2]
[403847781,1769593848772,-155.0,0.00021918,2]
[403847783,1769593848782,-168.35235479,0.00021918,2]
[403847785,1769593848791,-155.0,0.00021918,2]
[403847787,1769593848800,-155.0,0.00021918,2]
[403847789,1769593848810,-155.0,0.00021918,2]
[403847791,1769593848819,-155.0,0.00021918,2]
[403847793,1769593848829,-155.0,0.00021918,2]
[403847795,1769593848839,-155.0,0.00021918,2]
[403847797,1769593848847,-155.0,0.00021918,2]
[403847799,1769593848857,-155.0,0.00021918,2]
[403847801,1769593848866,-219.15698301,0.00021918,2]
[403847803,1769593848875,-800.0,0.00021918,4]
[403847805,1769593848884,-800.0,0.00021918,4]
[403847807,1769593848893,-800.0,0.00021918,4]
[403847809,1769593848901,-800.0,0.00021918,4]
[403847811,1769593848911,-800.0,0.00021918,4]
[403847813,1769593848920,-800.0,0.00021918,4]
[403847815,1769593848929,-800.0,0.00021918,4]
[403847817,1769593848938,-800.0,0.00021918,4]
[403847819,1769593848948,-155.0,0.00021918,2]
[403847821,1769593848957,-155.0,0.00021918,2]
[403847823,1769593848966,-155.0,0.00021918,2]
[403847825,1769593848976,-500.0,0.00021918,2]
[403847827,1769593848985,-1018.0,0.00021931,7]
[403847829,1769593848995,-150.0,0.00021973,2]
[403847831,1769593849004,-500.0,0.00021973,2]
[403847833,1769593849013,-500.0,0.00021973,2]
[403847835,1769593849023,-500.0,0.00021973,2]
[403847837,1769593849032,-175.36382972,0.00021973,2]
[403847839,1769593849041,-163.31548462,0.00021973,2]
[403847841,1769593849051,-500.0,0.00021973,2]
[403847843,1769593849060,-151.01838811,0.00021973,2]
[403847845,1769593849069,-380.77450093,0.00021973,2]
[403847847,1769593849079,-500.0,0.00021973,2]
[403847849,1769593849088,-500.0,0.00021973,2]
[403847851,1769593849097,-500.0,0.00021973,2]
[403847853,1769593849107,-500.0,0.00021973,2]
[403847855,1769593849116,-500.0,0.00021973,2]
[403847857,1769593849125,-500.0,0.00021973,2]
[403847859,1769593849135,-500.0,0.00021973,2]
[403847861,1769593849145,-500.0,0.00021973,2]
[403847863,1769593849156,-500.0,0.00021973,2]
[403847865,1769593849165,-210.16186211,0.00021973,2]
[403847867,1769593849174,-160.17378666,0.00021973,2]
[403847869,1769593849184,-500.72062274,0.00021973,2]
[403847871,1769593849195,-500.0,0.00021973,2]
[403847873,1769593849204,-500.0,0.00021973,2]
[403847875,1769593849215,-500.0,0.00021973,2]
[403847877,1769593849224,-500.0,0.00021973,2]
[403847879,1769593849234,-643.51237455,0.00021973,2]
[403847881,1769593849244,-500.0,0.00021973,2]
[403847883,1769593849253,-500.0,0.00021973,2]
[403847885,1769593849262,-500.0,0.00021973,2]
[403847887,1769593849272,-500.71324931,0.00021973,2]
[403847889,1769593849282,-500.0,0.00021973,2]
[403847891,1769593849291,-160.08,0.00021973,2]
[403847894,1769593849301,-500.5268179,0.00021973,2]
[403847896,1769593849311,-500.0,0.00021973,2]
[403847898,1769593849321,-500.0,0.00021973,2]
[403847900,1769593849331,-500.0,0.00021973,2]
[403847902,1769593849340,-500.0,0.00021973,2]
[403847904,1769593849350,-500.0,0.00021973,2]
[403847906,1769593849360,-500.0,0.00021973,2]
[403847908,1769593849371,-501.71470832,0.00021973,2]
[403847910,1769593849384,-500.0,0.00021973,2]
[403847912,1769593849393,-500.0,0.00021973,2]
[403847914,1769593849403,-500.0,0.00021973,2]
[403847916,1769593849412,-500.5908324,0.00021973,2]
[403847918,1769593849422,-500.47145403,0.00021973,2]
[403847920,1769593849432,-500.0,0.00021973,2]
[403847922,1769593849442,-431.84849978,0.00021973,2]
[403847924,1769593849451,-500.0,0.00021973,2]
[403847926,1769593849460,-500.0,0.00021973,2]
[403847928,1769593849470,-500.0,0.00021973,2]
[403847930,1769593849480,-500.0,0.00021973,2]
[403847932,1769593849490,-563.34898698,0.00021973,2]
[403847934,1769593849499,-501.00493719,0.00021973,2]
[403847937,1769593849509,-500.0,0.00021973,2]
[403847939,1769593849519,-500.8614743,0.00021973,2]
[403847941,1769593849528,-391.88485596,0.00021973,2]
[403847943,1769593849538,-500.0,0.00021973,2]
[403847945,1769593849547,-500.0,0.00021973,2]
[403847947,1769593849556,-578.20924308,0.00021974,2]
[403847949,1769593849566,-1021.97388167,0.00021986,7]
[403847951,1769593849575,-162.0,0.00022,14]
[403847953,1769593849585,-181.44,0.00022,2]
[403847955,1769593849595,-1130.69,0.00022,7]
[403847957,1769593849604,-70422.45844552,0.00022,4]
[403847959,1769593849614,-500.0,0.00022028,2]
[403847961,1769593849624,-258.34472253,0.00022062,2]
[403847963,1769593849634,-500.0,0.00022082,2]
[403847965,1769593849644,-273.13352919,0.00022132,2]
[403847967,1769593849654,-500.0,0.00022137,2]
[403847969,1769593849664,-500.0,0.00022192,2]
[403847971,1769593849673,-500.0,0.00022247,2]
[403847973,1769593849683,-500.0,0.00022302,2]
[403847975,1769593849693,-500.0,0.00022356,2]
[403847977,1769593849703,-500.0,0.00022411,2]
[403847979,1769593849713,-158.63104359,0.00022454,2]
[403847981,1769593849723,-500.0,0.00022466,2]
[403847983,1769593849733,-173.98525455,0.000225,7]
[403847985,1769593849743,-150.0,0.00022521,2]
[403847987,1769593849752,-535.37073986,0.00022521,2]
[403847989,1769593849762,-1000.0,0.00022521,2]
[403847992,1769593849771,-1000.92692502,0.00022521,2]
[403847993,1769593849780,-1000.0,0.00022521,2]
[403847995,1769593849790,-1000.0,0.00022521,2]
[403847997,1769593849799,-1000.88636946,0.00022521,2]
[403847999,1769593849809,-1000.0,0.00022521,2]
[403848001,1769593849819,-501.42687001,0.00022521,2]
[403848003,1769593849830,-1000.0,0.00022521,2]
[403848005,1769593849840,-501.35196587,0.00022521,2]
[403848007,1769593849849,-501.25105455,0.00022521,2]
[403848009,1769593849859,-1001.74500581,0.00022521,2]
[403848011,1769593849868,-1000.0,0.00022521,2]
[403848013,1769593849878,-1000.0,0.00022521,2]
[403848026,1769593849984,-1001.48093969,0.00022521,2]
[403848028,1769593849995,-1000.0,0.00022521,2]
[403848030,1769593850004,-1000.0,0.00022521,2]
[403848032,1769593850014,-1000.0,0.00022521,2]
[403848034,1769593850023,-1000.0,0.00022521,2]
[403848036,1769593850032,-1000.0,0.00022521,2]
[403848038,1769593850042,-1000.0,0.00022521,2]
[403848040,1769593850051,-1000.0,0.00022521,2]
[403848042,1769593850060,-302.18506883,0.00022521,2]
[403848044,1769593850070,-1000.81070746,0.00022521,2]
[403848046,1769593850080,-694.5705092,0.00022521,2]
[403848048,1769593850089,-1000.0,0.00022521,2]
[403848050,1769593850099,-1000.0,0.00022521,2]
[403848053,1769593850109,-1000.0,0.00022521,2]
[403848055,1769593850118,-1000.0,0.00022521,2]
[403848057,1769593850127,-1000.0,0.00022521,2]
[403848059,1769593850138,-1000.0,0.00022521,2]
[403848061,1769593850151,-1000.0,0.00022521,2]
[403848063,1769593850161,-1000.0,0.00022521,2]
[403848065,1769593850170,-1001.07065245,0.00022521,2]
[403848067,1769593850179,-591.99620663,0.00022521,2]
[403848068,1769593850190,-1142.18131833,0.00022521,2]
[403848071,1769593850199,-1000.0,0.00022521,2]
[403848073,1769593850209,-500.0,0.00022521,2]
[403848074,1769593850221,-500.0,0.00022576,2]
[403848077,1769593850231,-500.0,0.0002263,2]
[403848079,1769593850240,-500.0,0.00022685,2]
[403848081,1769593850249,-201.902198,0.000227,2]
[403848083,1769593850258,-634.80759439,0.0002274,2]
[403848084,1769593850267,-7389.4,0.00022924,2]
[403848086,1769593850277,-150.0,0.00022973,2]
[403848089,1769593850286,-164.35711812,0.00022973,2]
[403848091,1769593850295,-1409.0,0.00023056,2]
[403848093,1769593850305,-1333.0,0.00023056,2]
[403848095,1769593850314,-3477.0,0.00023056,2]
[403848096,1769593850323,-615.0,0.00023056,2]
[403848099,1769593850333,-184.0,0.00023056,2]
[403848101,1769593850343,-1270.0,0.00023056,2]
[403848102,1769593850353,-6572.0,0.00023056,2]
[403848104,1769593850362,-567.0,0.00023056,2]
[403848106,1769593850371,-237.59342723,0.00023068,2]
[403848108,1769593850380,-1500.0,0.00023068,2]
[403848110,1769593850389,-1500.0,0.00023068,2]
[403848112,1769593850398,-1500.0,0.00023068,2]
[403848114,1769593850407,-1500.0,0.00023068,2]
[403848116,1769593850417,-1500.0,0.00023068,2]
[403848118,1769593850426,-1500.0,0.00023068,2]
[403848120,1769593850435,-892.31600329,0.00023068,2]
[403848122,1769593850444,-1500.0,0.00023068,2]
[403848124,1769593850454,-901.18542814,0.00023068,2]
[403848126,1769593850463,-500.84820247,0.00023068,2]
[403848128,1769593850472,-287.70306997,0.00023068,2]
[403848130,1769593850481,-1500.0,0.00023068,2]
[403848132,1769593850490,-500.8447642,0.00023068,2]
[403848134,1769593850500,-1500.0,0.00023068,2]
[403848136,1769593850509,-1500.0,0.00023068,2]
[403848138,1769593850517,-1502.13077454,0.00023068,2]
[403848141,1769593850536,-1500.0,0.00023068,2]
[403848143,1769593850546,-1502.0815119,0.00023068,2]
[403848145,1769593850555,-1500.79902774,0.00023068,2]
[403848147,1769593850564,-1500.0,0.00023068,2]
[403848149,1769593850573,-1500.0,0.00023068,2]
[403848151,1769593850583,-1500.0,0.00023068,2]
[403848154,1769593850592,-1500.0,0.00023068,2]
[403848156,1769593850602,-634.8,0.00023225,2]
[403848158,1769593850611,-2000.0,0.000234,2]
[403848160,1769593850620,-303.0,0.000234,2]
[403848161,1769593850629,-250.0,0.00023521,2]
[403848162,1769593850638,-563.2071984,0.00023616,2]
[403848163,1769593850647,-1002.50538317,0.00023616,2]
[403848164,1769593850656,-500.0,0.00023616,2]
[403848165,1769593850665,-461.93263446,0.00023616,2]
[403848166,1769593850673,-501.4315865,0.00023616,2]
[403848167,1769593850682,-619.15242156,0.00023616,2]
[403848168,1769593850692,-1502.31324389,0.00023616,2]
[403848169,1769593850701,-174.36957488,0.00023616,2]
[403848170,1769593850710,-500.0,0.00023616,2]
[403848171,1769593850719,-1001.66009161,0.00023616,2]
[403848172,1769593850728,-2000.0,0.00023616,2]
[403848173,1769593850737,-436.39003316,0.00023616,2]
[403848175,1769593850746,-1002.59867678,0.00023616,2]
[403848177,1769593850755,-1066.45365623,0.00023616,2]
[403848179,1769593850764,-288.94047473,0.00023616,2]
[403848181,1769593850773,-1130.69,0.000237,7]
[403848183,1769593850782,-500.0,0.0002373,2]
[403848185,1769593850792,-350.0,0.00024068,2]
[403848187,1769593850801,-2500.0,0.00024164,2]
[403848189,1769593850810,-6520.91910662,0.000245,2]
[403848191,1769593850820,-450.0,0.00024616,2]
[403848193,1769593850829,-1000.0,0.00024658,2]
[403848195,1769593850837,-152.356874,0.00024658,2]
[403848197,1769593850847,-150.0,0.00024658,2]
[403848199,1769593850856,-151.0,0.00024658,2]
[403848201,1769593850865,-200.0,0.000247,2]
[403848203,1769593850875,-633.37011008,0.00024712,2]
[403848206,1769593850889,-500.0,0.00024799,2]
[403848208,1769593850899,-6328.94161785,0.000248,3]
[403848268,1769593851735,-13334.80899494,0.000248,3]
[403848269,1769593851747,-539.18345855,0.000248,3]
[403848270,1769593851863,500.0,0.00013846,2]
[403848271,1769593851897,500.0,0.00013846,2]
[403848272,1769593851930,431.38232094,0.00013846,2]
[403848273,1769593852041,-285.79091132,0.00016373,2]